{"text_format":"3","workbook":"xlsx","n_sheets":4,"sheets":["Eelarve ülevaade","Eelarve kokkuvõte","Igakuiseid väljaminekud","Täiendav andmed"],"not_rendered":{"charts":1,"images":4,"defined_names":7,"pivot_tables":2},"read":"whole","date_system":"1900"}

{"sheet":"Eelarve ülevaade","index":0,"n_rows":12,"n_cols":8,"rows_kept":12,"merged":[[1,1,1,2],[2,1,2,2],[3,1,3,2],[4,1,4,2]]}
[{"$nulls":7}," "]
[null,"Saldo"]
[null,"Prognoositud saldo",null,{"$f":"Prognoositud_Sissetulek-Prognoositud_Väljaminekud","v":{"v":1585,"d":"1,585 €"}},null,"Prognoositud miinus kulud"]
[null,"Tegelik saldo ",null,{"$f":"Tegelik_Sissetulek-Tegelikud_Väljaminekud","v":{"v":1740,"d":"1,740 €"}},null,"Tegelik miinus kulud"]
[null,"Erinevus",null,{"$f":"D4-D3","v":{"v":155,"d":"155 €"}},null,"Tegelik miinus prognoositud"]
[null,"Sissetulek",{"$nulls":3},"Kulud"]
[null,null,"Prognoositud","Tegelik",null,"Prognoositud","Tegelik"]
[null,"Sissetulek 1",{"v":6000,"d":"6,000 €"},{"v":5800,"d":"5,800 €"},null,{"$f":"SUM(Kuuväljaminekute_Tabel[Prognoositavad kulud])","v":{"v":7915,"d":"7,915 €"}},{"$f":"SUM(Kuuväljaminekute_Tabel[Tegelik kulu])","v":{"v":7860,"d":"7,860 €"}}]
[null,"Sissetulek 2",{"v":1000,"d":"1,000 €"},{"v":2300,"d":"2,300 €"}]
[null,"Lisasissetulek",{"v":2500,"d":"2,500 €"},{"v":1500,"d":"1,500 €"}]
[null,"Sissetulekud kokku",{"$f":"SUM(C8:C10)","v":{"v":9500,"d":"9,500 €"}},{"$f":"SUM(D8:D10)","v":{"v":9600,"d":"9,600 €"}}]
[null,"Tegelike kulude jaotus"]

{"sheet":"Eelarve kokkuvõte","index":1,"n_rows":41,"n_cols":7,"rows_kept":41}
[null,"Eelarve kokkuvõte",{"$nulls":4}," "]
[]
[null,"Categories","Prognoositavad kulud ","Tegelik kulu ","Erinevus "]
[null,"Lapsed",{"v":140,"d":"140 €"},{"v":140,"d":"140 €"},{"v":0,"d":"0 €"}]
[null,"Koolitarbed",null,null,{"v":0,"d":"0 €"}]
[null,"Tervisega seotud",null,null,{"v":0,"d":"0 €"}]
[null,"Õppekavavälised tegevused",{"v":40,"d":"40 €"},{"v":40,"d":"40 €"},{"v":0,"d":"0 €"}]
[null,"Õppemaks",{"v":100,"d":"100 €"},{"v":100,"d":"100 €"},{"v":0,"d":"0 €"}]
[]
[null,"Meelelahutus",{"v":400,"d":"400 €"},{"v":358,"d":"358 €"},{"v":42,"d":"42 €"}]
[null,"Kino",{"v":50,"d":"50 €"},{"v":28,"d":"28 €"},{"v":22,"d":"22 €"}]
[null,"Kontserdid",{"v":50,"d":"50 €"},{"v":40,"d":"40 €"},{"v":10,"d":"10 €"}]
[null,"Muusika (CD-d, allalaadimised jne)",{"v":50,"d":"50 €"},{"v":30,"d":"30 €"},{"v":20,"d":"20 €"}]
[null,"Spordiüritused",{"v":0,"d":"0 €"},{"v":40,"d":"40 €"},{"v":-40,"d":"-40 €"}]
[null,"Teater",{"v":200,"d":"200 €"},{"v":150,"d":"150 €"},{"v":50,"d":"50 €"}]
[null,"Video/DVD (laenutus)",{"v":30,"d":"30 €"},{"v":20,"d":"20 €"},{"v":10,"d":"10 €"}]
[null,"Video/DVD (ostmine)",{"v":20,"d":"20 €"},{"v":50,"d":"50 €"},{"v":-30,"d":"-30 €"}]
[]
[null,"Eluase",{"v":2830,"d":"2,830 €"},{"v":2702,"d":"2,702 €"},{"v":-72,"d":"-72 €"}]
[]
[null,"Isiklik hooldus",{"v":150,"d":"150 €"},{"v":140,"d":"140 €"},{"v":10,"d":"10 €"}]
[]
[null,"Kindlustus",{"v":900,"d":"900 €"},{"v":900,"d":"900 €"},{"v":0,"d":"0 €"}]
[]
[null,"Kingitused ja heategevus",{"v":100,"d":"100 €"},{"v":125,"d":"125 €"},{"v":-25,"d":"-25 €"}]
[]
[null,"Laenud",{"v":200,"d":"200 €"},{"v":200,"d":"200 €"},{"v":0,"d":"0 €"}]
[]
[null,"Lemmikloomad",{"v":170,"d":"170 €"},{"v":100,"d":"100 €"},{"v":70,"d":"70 €"}]
[]
[null,"Maksud",{"v":300,"d":"300 €"},{"v":300,"d":"300 €"},{"v":0,"d":"0 €"}]
[]
[null,"Söök",{"v":1100,"d":"1,100 €"},{"v":1320,"d":"1,320 €"},{"v":-220,"d":"-220 €"}]
[]
[null,"Transport",{"v":1425,"d":"1,425 €"},{"v":1375,"d":"1,375 €"},{"v":50,"d":"50 €"}]
[]
[null,"Säästud",{"v":200,"d":"200 €"},{"v":200,"d":"200 €"},{"v":0,"d":"0 €"}]
[null,"Investeerimiskonto",{"v":200,"d":"200 €"},{"v":200,"d":"200 €"},{"v":0,"d":"0 €"}]
[null,"Pensionikonto",null,null,{"v":0,"d":"0 €"}]
[]
[null,"Üldkokkuvõte",{"v":7915,"d":"7,915 €"},{"v":7860,"d":"7,860 €"},{"v":-145,"d":"-145 €"}]

{"sheet":"Igakuiseid väljaminekud","index":2,"n_rows":61,"n_cols":8,"rows_kept":61}
[{"$nulls":7}," "]
[null,"Kirjeldus","Kategooria","Prognoositavad kulud","Tegelik kulu","Erinevus","Tegelike kulude ülevaade"]
[null,"Õppekavavälised tegevused","Lapsed",{"v":40,"d":"40 €"},{"v":40,"d":"40 €"},{"$f":"IF(OR(Kuuväljaminekute_Tabel[[#This Row],[Prognoositavad kulud]]=\"\",Kuuväljaminekute_Tabel[[#This Row],[Tegelik kulu]]=\"\"),\"\",Kuuväljaminekute_Tabel[[#This Row],[Prognoositavad kulud]]-Kuuväljaminekute_Tabel[[#This Row],[Tegelik kulu]])","v":{"v":0,"d":"0 €"}},{"$f":"Kuuväljaminekute_Tabel[[#This Row],[Tegelik kulu]]","v":40}]
[null,"Tervisega seotud","Lapsed",null,null,{"$f":"IF(OR(Kuuväljaminekute_Tabel[[#This Row],[Prognoositavad kulud]]=\"\",Kuuväljaminekute_Tabel[[#This Row],[Tegelik kulu]]=\"\"),\"\",Kuuväljaminekute_Tabel[[#This Row],[Prognoositavad kulud]]-Kuuväljaminekute_Tabel[[#This Row],[Tegelik kulu]])","v":""},{"$f":"Kuuväljaminekute_Tabel[[#This Row],[Tegelik kulu]]","v":0}]
[null,"Koolitarbed","Lapsed",null,null,{"$f":"IF(OR(Kuuväljaminekute_Tabel[[#This Row],[Prognoositavad kulud]]=\"\",Kuuväljaminekute_Tabel[[#This Row],[Tegelik kulu]]=\"\"),\"\",Kuuväljaminekute_Tabel[[#This Row],[Prognoositavad kulud]]-Kuuväljaminekute_Tabel[[#This Row],[Tegelik kulu]])","v":""},{"$f":"Kuuväljaminekute_Tabel[[#This Row],[Tegelik kulu]]","v":0}]
[null,"Õppemaks","Lapsed",{"v":100,"d":"100 €"},{"v":100,"d":"100 €"},{"$f":"IF(OR(Kuuväljaminekute_Tabel[[#This Row],[Prognoositavad kulud]]=\"\",Kuuväljaminekute_Tabel[[#This Row],[Tegelik kulu]]=\"\"),\"\",Kuuväljaminekute_Tabel[[#This Row],[Prognoositavad kulud]]-Kuuväljaminekute_Tabel[[#This Row],[Tegelik kulu]])","v":{"v":0,"d":"0 €"}},{"$f":"Kuuväljaminekute_Tabel[[#This Row],[Tegelik kulu]]","v":100}]
[null,"Kontserdid","Meelelahutus",{"v":50,"d":"50 €"},{"v":40,"d":"40 €"},{"$f":"IF(OR(Kuuväljaminekute_Tabel[[#This Row],[Prognoositavad kulud]]=\"\",Kuuväljaminekute_Tabel[[#This Row],[Tegelik kulu]]=\"\"),\"\",Kuuväljaminekute_Tabel[[#This Row],[Prognoositavad kulud]]-Kuuväljaminekute_Tabel[[#This Row],[Tegelik kulu]])","v":{"v":10,"d":"10 €"}},{"$f":"Kuuväljaminekute_Tabel[[#This Row],[Tegelik kulu]]","v":40}]
[null,"Teater","Meelelahutus",{"v":200,"d":"200 €"},{"v":150,"d":"150 €"},{"$f":"IF(OR(Kuuväljaminekute_Tabel[[#This Row],[Prognoositavad kulud]]=\"\",Kuuväljaminekute_Tabel[[#This Row],[Tegelik kulu]]=\"\"),\"\",Kuuväljaminekute_Tabel[[#This Row],[Prognoositavad kulud]]-Kuuväljaminekute_Tabel[[#This Row],[Tegelik kulu]])","v":{"v":50,"d":"50 €"}},{"$f":"Kuuväljaminekute_Tabel[[#This Row],[Tegelik kulu]]","v":150}]
[null,"Kino","Meelelahutus",{"v":50,"d":"50 €"},{"v":28,"d":"28 €"},{"$f":"IF(OR(Kuuväljaminekute_Tabel[[#This Row],[Prognoositavad kulud]]=\"\",Kuuväljaminekute_Tabel[[#This Row],[Tegelik kulu]]=\"\"),\"\",Kuuväljaminekute_Tabel[[#This Row],[Prognoositavad kulud]]-Kuuväljaminekute_Tabel[[#This Row],[Tegelik kulu]])","v":{"v":22,"d":"22 €"}},{"$f":"Kuuväljaminekute_Tabel[[#This Row],[Tegelik kulu]]","v":28}]
[null,"Muusika (CD-d, allalaadimised jne)","Meelelahutus",{"v":50,"d":"50 €"},{"v":30,"d":"30 €"},{"$f":"IF(OR(Kuuväljaminekute_Tabel[[#This Row],[Prognoositavad kulud]]=\"\",Kuuväljaminekute_Tabel[[#This Row],[Tegelik kulu]]=\"\"),\"\",Kuuväljaminekute_Tabel[[#This Row],[Prognoositavad kulud]]-Kuuväljaminekute_Tabel[[#This Row],[Tegelik kulu]])","v":{"v":20,"d":"20 €"}},{"$f":"Kuuväljaminekute_Tabel[[#This Row],[Tegelik kulu]]","v":30}]
[null,"Spordiüritused","Meelelahutus",{"v":0,"d":"0 €"},{"v":40,"d":"40 €"},{"$f":"IF(OR(Kuuväljaminekute_Tabel[[#This Row],[Prognoositavad kulud]]=\"\",Kuuväljaminekute_Tabel[[#This Row],[Tegelik kulu]]=\"\"),\"\",Kuuväljaminekute_Tabel[[#This Row],[Prognoositavad kulud]]-Kuuväljaminekute_Tabel[[#This Row],[Tegelik kulu]])","v":{"v":-40,"d":"-40 €"}},{"$f":"Kuuväljaminekute_Tabel[[#This Row],[Tegelik kulu]]","v":40}]
[null,"Video/DVD (ostmine)","Meelelahutus",{"v":20,"d":"20 €"},{"v":50,"d":"50 €"},{"$f":"IF(OR(Kuuväljaminekute_Tabel[[#This Row],[Prognoositavad kulud]]=\"\",Kuuväljaminekute_Tabel[[#This Row],[Tegelik kulu]]=\"\"),\"\",Kuuväljaminekute_Tabel[[#This Row],[Prognoositavad kulud]]-Kuuväljaminekute_Tabel[[#This Row],[Tegelik kulu]])","v":{"v":-30,"d":"-30 €"}},{"$f":"Kuuväljaminekute_Tabel[[#This Row],[Tegelik kulu]]","v":50}]
[null,"Video/DVD (laenutus)","Meelelahutus",{"v":30,"d":"30 €"},{"v":20,"d":"20 €"},{"$f":"IF(OR(Kuuväljaminekute_Tabel[[#This Row],[Prognoositavad kulud]]=\"\",Kuuväljaminekute_Tabel[[#This Row],[Tegelik kulu]]=\"\"),\"\",Kuuväljaminekute_Tabel[[#This Row],[Prognoositavad kulud]]-Kuuväljaminekute_Tabel[[#This Row],[Tegelik kulu]])","v":{"v":10,"d":"10 €"}},{"$f":"Kuuväljaminekute_Tabel[[#This Row],[Tegelik kulu]]","v":20}]
[null,"Väljas söömine","Söök",{"v":1000,"d":"1,000 €"},{"v":1200,"d":"1,200 €"},{"$f":"IF(OR(Kuuväljaminekute_Tabel[[#This Row],[Prognoositavad kulud]]=\"\",Kuuväljaminekute_Tabel[[#This Row],[Tegelik kulu]]=\"\"),\"\",Kuuväljaminekute_Tabel[[#This Row],[Prognoositavad kulud]]-Kuuväljaminekute_Tabel[[#This Row],[Tegelik kulu]])","v":{"v":-200,"d":"-200 €"}},{"$f":"Kuuväljaminekute_Tabel[[#This Row],[Tegelik kulu]]","v":1200}]
[null,"Toiduained","Söök",{"v":100,"d":"100 €"},{"v":120,"d":"120 €"},{"$f":"IF(OR(Kuuväljaminekute_Tabel[[#This Row],[Prognoositavad kulud]]=\"\",Kuuväljaminekute_Tabel[[#This Row],[Tegelik kulu]]=\"\"),\"\",Kuuväljaminekute_Tabel[[#This Row],[Prognoositavad kulud]]-Kuuväljaminekute_Tabel[[#This Row],[Tegelik kulu]])","v":{"v":-20,"d":"-20 €"}},{"$f":"Kuuväljaminekute_Tabel[[#This Row],[Tegelik kulu]]","v":120}]
[null,"Heategevus 1","Kingitused ja heategevus",{"v":75,"d":"75 €"},{"v":100,"d":"100 €"},{"$f":"IF(OR(Kuuväljaminekute_Tabel[[#This Row],[Prognoositavad kulud]]=\"\",Kuuväljaminekute_Tabel[[#This Row],[Tegelik kulu]]=\"\"),\"\",Kuuväljaminekute_Tabel[[#This Row],[Prognoositavad kulud]]-Kuuväljaminekute_Tabel[[#This Row],[Tegelik kulu]])","v":{"v":-25,"d":"-25 €"}},{"$f":"Kuuväljaminekute_Tabel[[#This Row],[Tegelik kulu]]","v":100}]
[null,"Heategevus 2","Kingitused ja heategevus",{"v":25,"d":"25 €"},{"v":25,"d":"25 €"},{"$f":"IF(OR(Kuuväljaminekute_Tabel[[#This Row],[Prognoositavad kulud]]=\"\",Kuuväljaminekute_Tabel[[#This Row],[Tegelik kulu]]=\"\"),\"\",Kuuväljaminekute_Tabel[[#This Row],[Prognoositavad kulud]]-Kuuväljaminekute_Tabel[[#This Row],[Tegelik kulu]])","v":{"v":0,"d":"0 €"}},{"$f":"Kuuväljaminekute_Tabel[[#This Row],[Tegelik kulu]]","v":25}]
[null,"Kingitus 1","Kingitused ja heategevus",null,null,{"$f":"IF(OR(Kuuväljaminekute_Tabel[[#This Row],[Prognoositavad kulud]]=\"\",Kuuväljaminekute_Tabel[[#This Row],[Tegelik kulu]]=\"\"),\"\",Kuuväljaminekute_Tabel[[#This Row],[Prognoositavad kulud]]-Kuuväljaminekute_Tabel[[#This Row],[Tegelik kulu]])","v":""},{"$f":"Kuuväljaminekute_Tabel[[#This Row],[Tegelik kulu]]","v":0}]
[null,"Kingitus 2","Kingitused ja heategevus",null,null,{"$f":"IF(OR(Kuuväljaminekute_Tabel[[#This Row],[Prognoositavad kulud]]=\"\",Kuuväljaminekute_Tabel[[#This Row],[Tegelik kulu]]=\"\"),\"\",Kuuväljaminekute_Tabel[[#This Row],[Prognoositavad kulud]]-Kuuväljaminekute_Tabel[[#This Row],[Tegelik kulu]])","v":""},{"$f":"Kuuväljaminekute_Tabel[[#This Row],[Tegelik kulu]]","v":0}]
[null,"Televisioon","Eluase",{"v":100,"d":"100 €"},{"v":100,"d":"100 €"},{"$f":"IF(OR(Kuuväljaminekute_Tabel[[#This Row],[Prognoositavad kulud]]=\"\",Kuuväljaminekute_Tabel[[#This Row],[Tegelik kulu]]=\"\"),\"\",Kuuväljaminekute_Tabel[[#This Row],[Prognoositavad kulud]]-Kuuväljaminekute_Tabel[[#This Row],[Tegelik kulu]])","v":{"v":0,"d":"0 €"}},{"$f":"Kuuväljaminekute_Tabel[[#This Row],[Tegelik kulu]]","v":100}]
[null,"Elekter","Eluase",{"v":45,"d":"45 €"},{"v":50,"d":"50 €"},{"$f":"IF(OR(Kuuväljaminekute_Tabel[[#This Row],[Prognoositavad kulud]]=\"\",Kuuväljaminekute_Tabel[[#This Row],[Tegelik kulu]]=\"\"),\"\",Kuuväljaminekute_Tabel[[#This Row],[Prognoositavad kulud]]-Kuuväljaminekute_Tabel[[#This Row],[Tegelik kulu]])","v":{"v":-5,"d":"-5 €"}},{"$f":"Kuuväljaminekute_Tabel[[#This Row],[Tegelik kulu]]","v":50}]
[null,"Bensiin","Eluase",{"v":300,"d":"300 €"},{"v":400,"d":"400 €"},{"$f":"IF(OR(Kuuväljaminekute_Tabel[[#This Row],[Prognoositavad kulud]]=\"\",Kuuväljaminekute_Tabel[[#This Row],[Tegelik kulu]]=\"\"),\"\",Kuuväljaminekute_Tabel[[#This Row],[Prognoositavad kulud]]-Kuuväljaminekute_Tabel[[#This Row],[Tegelik kulu]])","v":{"v":-100,"d":"-100 €"}},{"$f":"Kuuväljaminekute_Tabel[[#This Row],[Tegelik kulu]]","v":400}]
[null,"Kodukoristusteenused","Eluase",{"v":200,"d":"200 €"},null,{"$f":"IF(OR(Kuuväljaminekute_Tabel[[#This Row],[Prognoositavad kulud]]=\"\",Kuuväljaminekute_Tabel[[#This Row],[Tegelik kulu]]=\"\"),\"\",Kuuväljaminekute_Tabel[[#This Row],[Prognoositavad kulud]]-Kuuväljaminekute_Tabel[[#This Row],[Tegelik kulu]])","v":""},{"$f":"Kuuväljaminekute_Tabel[[#This Row],[Tegelik kulu]]","v":0}]
[null,"Hooldus","Eluase",{"v":200,"d":"200 €"},{"v":150,"d":"150 €"},{"$f":"IF(OR(Kuuväljaminekute_Tabel[[#This Row],[Prognoositavad kulud]]=\"\",Kuuväljaminekute_Tabel[[#This Row],[Tegelik kulu]]=\"\"),\"\",Kuuväljaminekute_Tabel[[#This Row],[Prognoositavad kulud]]-Kuuväljaminekute_Tabel[[#This Row],[Tegelik kulu]])","v":{"v":50,"d":"50 €"}},{"$f":"Kuuväljaminekute_Tabel[[#This Row],[Tegelik kulu]]","v":150}]
[null,"Eluasemelaen või üür","Eluase",{"v":1700,"d":"1,700 €"},{"v":1700,"d":"1,700 €"},{"$f":"IF(OR(Kuuväljaminekute_Tabel[[#This Row],[Prognoositavad kulud]]=\"\",Kuuväljaminekute_Tabel[[#This Row],[Tegelik kulu]]=\"\"),\"\",Kuuväljaminekute_Tabel[[#This Row],[Prognoositavad kulud]]-Kuuväljaminekute_Tabel[[#This Row],[Tegelik kulu]])","v":{"v":0,"d":"0 €"}},{"$f":"Kuuväljaminekute_Tabel[[#This Row],[Tegelik kulu]]","v":1700}]
[null,"Maagaas/õli","Eluase",null,null,{"$f":"IF(OR(Kuuväljaminekute_Tabel[[#This Row],[Prognoositavad kulud]]=\"\",Kuuväljaminekute_Tabel[[#This Row],[Tegelik kulu]]=\"\"),\"\",Kuuväljaminekute_Tabel[[#This Row],[Prognoositavad kulud]]-Kuuväljaminekute_Tabel[[#This Row],[Tegelik kulu]])","v":""},{"$f":"Kuuväljaminekute_Tabel[[#This Row],[Tegelik kulu]]","v":0}]
[null,"Võrgu-/internetiteenused","Eluase",{"v":100,"d":"100 €"},{"v":100,"d":"100 €"},{"$f":"IF(OR(Kuuväljaminekute_Tabel[[#This Row],[Prognoositavad kulud]]=\"\",Kuuväljaminekute_Tabel[[#This Row],[Tegelik kulu]]=\"\"),\"\",Kuuväljaminekute_Tabel[[#This Row],[Prognoositavad kulud]]-Kuuväljaminekute_Tabel[[#This Row],[Tegelik kulu]])","v":{"v":0,"d":"0 €"}},{"$f":"Kuuväljaminekute_Tabel[[#This Row],[Tegelik kulu]]","v":100}]
[null,"Telefon (mobiilside)","Eluase",{"v":60,"d":"60 €"},{"v":60,"d":"60 €"},{"$f":"IF(OR(Kuuväljaminekute_Tabel[[#This Row],[Prognoositavad kulud]]=\"\",Kuuväljaminekute_Tabel[[#This Row],[Tegelik kulu]]=\"\"),\"\",Kuuväljaminekute_Tabel[[#This Row],[Prognoositavad kulud]]-Kuuväljaminekute_Tabel[[#This Row],[Tegelik kulu]])","v":{"v":0,"d":"0 €"}},{"$f":"Kuuväljaminekute_Tabel[[#This Row],[Tegelik kulu]]","v":60}]
[null,"Telefon (kodu)","Eluase",{"v":35,"d":"35 €"},{"v":39,"d":"39 €"},{"$f":"IF(OR(Kuuväljaminekute_Tabel[[#This Row],[Prognoositavad kulud]]=\"\",Kuuväljaminekute_Tabel[[#This Row],[Tegelik kulu]]=\"\"),\"\",Kuuväljaminekute_Tabel[[#This Row],[Prognoositavad kulud]]-Kuuväljaminekute_Tabel[[#This Row],[Tegelik kulu]])","v":{"v":-4,"d":"-4 €"}},{"$f":"Kuuväljaminekute_Tabel[[#This Row],[Tegelik kulu]]","v":39}]
[null,"Tarbeesemed","Eluase",{"v":40,"d":"40 €"},{"v":55,"d":"55 €"},{"$f":"IF(OR(Kuuväljaminekute_Tabel[[#This Row],[Prognoositavad kulud]]=\"\",Kuuväljaminekute_Tabel[[#This Row],[Tegelik kulu]]=\"\"),\"\",Kuuväljaminekute_Tabel[[#This Row],[Prognoositavad kulud]]-Kuuväljaminekute_Tabel[[#This Row],[Tegelik kulu]])","v":{"v":-15,"d":"-15 €"}},{"$f":"Kuuväljaminekute_Tabel[[#This Row],[Tegelik kulu]]","v":55}]
[null,"Prügivedu ja ringlussevõtt","Eluase",{"v":25,"d":"25 €"},{"v":22,"d":"22 €"},{"$f":"IF(OR(Kuuväljaminekute_Tabel[[#This Row],[Prognoositavad kulud]]=\"\",Kuuväljaminekute_Tabel[[#This Row],[Tegelik kulu]]=\"\"),\"\",Kuuväljaminekute_Tabel[[#This Row],[Prognoositavad kulud]]-Kuuväljaminekute_Tabel[[#This Row],[Tegelik kulu]])","v":{"v":3,"d":"3 €"}},{"$f":"Kuuväljaminekute_Tabel[[#This Row],[Tegelik kulu]]","v":22}]
[null,"Vesi- ja kanalisatsioon","Eluase",{"v":25,"d":"25 €"},{"v":26,"d":"26 €"},{"$f":"IF(OR(Kuuväljaminekute_Tabel[[#This Row],[Prognoositavad kulud]]=\"\",Kuuväljaminekute_Tabel[[#This Row],[Tegelik kulu]]=\"\"),\"\",Kuuväljaminekute_Tabel[[#This Row],[Prognoositavad kulud]]-Kuuväljaminekute_Tabel[[#This Row],[Tegelik kulu]])","v":{"v":-1,"d":"-1 €"}},{"$f":"Kuuväljaminekute_Tabel[[#This Row],[Tegelik kulu]]","v":26}]
[null,"Tervisekindlustus","Kindlustus",{"v":400,"d":"400 €"},{"v":400,"d":"400 €"},{"$f":"IF(OR(Kuuväljaminekute_Tabel[[#This Row],[Prognoositavad kulud]]=\"\",Kuuväljaminekute_Tabel[[#This Row],[Tegelik kulu]]=\"\"),\"\",Kuuväljaminekute_Tabel[[#This Row],[Prognoositavad kulud]]-Kuuväljaminekute_Tabel[[#This Row],[Tegelik kulu]])","v":{"v":0,"d":"0 €"}},{"$f":"Kuuväljaminekute_Tabel[[#This Row],[Tegelik kulu]]","v":400}]
[null,"Kodukindlustus","Kindlustus",{"v":400,"d":"400 €"},{"v":400,"d":"400 €"},{"$f":"IF(OR(Kuuväljaminekute_Tabel[[#This Row],[Prognoositavad kulud]]=\"\",Kuuväljaminekute_Tabel[[#This Row],[Tegelik kulu]]=\"\"),\"\",Kuuväljaminekute_Tabel[[#This Row],[Prognoositavad kulud]]-Kuuväljaminekute_Tabel[[#This Row],[Tegelik kulu]])","v":{"v":0,"d":"0 €"}},{"$f":"Kuuväljaminekute_Tabel[[#This Row],[Tegelik kulu]]","v":400}]
[null,"Elukindlustus","Kindlustus",{"v":100,"d":"100 €"},{"v":100,"d":"100 €"},{"$f":"IF(OR(Kuuväljaminekute_Tabel[[#This Row],[Prognoositavad kulud]]=\"\",Kuuväljaminekute_Tabel[[#This Row],[Tegelik kulu]]=\"\"),\"\",Kuuväljaminekute_Tabel[[#This Row],[Prognoositavad kulud]]-Kuuväljaminekute_Tabel[[#This Row],[Tegelik kulu]])","v":{"v":0,"d":"0 €"}},{"$f":"Kuuväljaminekute_Tabel[[#This Row],[Tegelik kulu]]","v":100}]
[null,"Krediitkaart 1","Laenud",{"v":200,"d":"200 €"},{"v":200,"d":"200 €"},{"$f":"IF(OR(Kuuväljaminekute_Tabel[[#This Row],[Prognoositavad kulud]]=\"\",Kuuväljaminekute_Tabel[[#This Row],[Tegelik kulu]]=\"\"),\"\",Kuuväljaminekute_Tabel[[#This Row],[Prognoositavad kulud]]-Kuuväljaminekute_Tabel[[#This Row],[Tegelik kulu]])","v":{"v":0,"d":"0 €"}},{"$f":"Kuuväljaminekute_Tabel[[#This Row],[Tegelik kulu]]","v":200}]
[null,"Krediitkaart 2","Laenud",null,null,{"$f":"IF(OR(Kuuväljaminekute_Tabel[[#This Row],[Prognoositavad kulud]]=\"\",Kuuväljaminekute_Tabel[[#This Row],[Tegelik kulu]]=\"\"),\"\",Kuuväljaminekute_Tabel[[#This Row],[Prognoositavad kulud]]-Kuuväljaminekute_Tabel[[#This Row],[Tegelik kulu]])","v":""},{"$f":"Kuuväljaminekute_Tabel[[#This Row],[Tegelik kulu]]","v":0}]
[null,"Krediitkaart 3","Laenud",null,null,{"$f":"IF(OR(Kuuväljaminekute_Tabel[[#This Row],[Prognoositavad kulud]]=\"\",Kuuväljaminekute_Tabel[[#This Row],[Tegelik kulu]]=\"\"),\"\",Kuuväljaminekute_Tabel[[#This Row],[Prognoositavad kulud]]-Kuuväljaminekute_Tabel[[#This Row],[Tegelik kulu]])","v":""},{"$f":"Kuuväljaminekute_Tabel[[#This Row],[Tegelik kulu]]","v":0}]
[null,"Isiklik laen","Laenud",null,null,{"$f":"IF(OR(Kuuväljaminekute_Tabel[[#This Row],[Prognoositavad kulud]]=\"\",Kuuväljaminekute_Tabel[[#This Row],[Tegelik kulu]]=\"\"),\"\",Kuuväljaminekute_Tabel[[#This Row],[Prognoositavad kulud]]-Kuuväljaminekute_Tabel[[#This Row],[Tegelik kulu]])","v":""},{"$f":"Kuuväljaminekute_Tabel[[#This Row],[Tegelik kulu]]","v":0}]
[null,"Õppelaen","Laenud",null,null,{"$f":"IF(OR(Kuuväljaminekute_Tabel[[#This Row],[Prognoositavad kulud]]=\"\",Kuuväljaminekute_Tabel[[#This Row],[Tegelik kulu]]=\"\"),\"\",Kuuväljaminekute_Tabel[[#This Row],[Prognoositavad kulud]]-Kuuväljaminekute_Tabel[[#This Row],[Tegelik kulu]])","v":""},{"$f":"Kuuväljaminekute_Tabel[[#This Row],[Tegelik kulu]]","v":0}]
[null,"Riided","Isiklik hooldus",{"v":150,"d":"150 €"},{"v":140,"d":"140 €"},{"$f":"IF(OR(Kuuväljaminekute_Tabel[[#This Row],[Prognoositavad kulud]]=\"\",Kuuväljaminekute_Tabel[[#This Row],[Tegelik kulu]]=\"\"),\"\",Kuuväljaminekute_Tabel[[#This Row],[Prognoositavad kulud]]-Kuuväljaminekute_Tabel[[#This Row],[Tegelik kulu]])","v":{"v":10,"d":"10 €"}},{"$f":"Kuuväljaminekute_Tabel[[#This Row],[Tegelik kulu]]","v":140}]
[null,"Keemiline puhastus","Isiklik hooldus",null,null,{"$f":"IF(OR(Kuuväljaminekute_Tabel[[#This Row],[Prognoositavad kulud]]=\"\",Kuuväljaminekute_Tabel[[#This Row],[Tegelik kulu]]=\"\"),\"\",Kuuväljaminekute_Tabel[[#This Row],[Prognoositavad kulud]]-Kuuväljaminekute_Tabel[[#This Row],[Tegelik kulu]])","v":""},{"$f":"Kuuväljaminekute_Tabel[[#This Row],[Tegelik kulu]]","v":0}]
[null,"Juuksed ja küüned","Isiklik hooldus",null,null,{"$f":"IF(OR(Kuuväljaminekute_Tabel[[#This Row],[Prognoositavad kulud]]=\"\",Kuuväljaminekute_Tabel[[#This Row],[Tegelik kulu]]=\"\"),\"\",Kuuväljaminekute_Tabel[[#This Row],[Prognoositavad kulud]]-Kuuväljaminekute_Tabel[[#This Row],[Tegelik kulu]])","v":""},{"$f":"Kuuväljaminekute_Tabel[[#This Row],[Tegelik kulu]]","v":0}]
[null,"Spordiklubi","Isiklik hooldus",null,null,{"$f":"IF(OR(Kuuväljaminekute_Tabel[[#This Row],[Prognoositavad kulud]]=\"\",Kuuväljaminekute_Tabel[[#This Row],[Tegelik kulu]]=\"\"),\"\",Kuuväljaminekute_Tabel[[#This Row],[Prognoositavad kulud]]-Kuuväljaminekute_Tabel[[#This Row],[Tegelik kulu]])","v":""},{"$f":"Kuuväljaminekute_Tabel[[#This Row],[Tegelik kulu]]","v":0}]
[null,"Meditsiinitarbed","Isiklik hooldus",null,null,{"$f":"IF(OR(Kuuväljaminekute_Tabel[[#This Row],[Prognoositavad kulud]]=\"\",Kuuväljaminekute_Tabel[[#This Row],[Tegelik kulu]]=\"\"),\"\",Kuuväljaminekute_Tabel[[#This Row],[Prognoositavad kulud]]-Kuuväljaminekute_Tabel[[#This Row],[Tegelik kulu]])","v":""},{"$f":"Kuuväljaminekute_Tabel[[#This Row],[Tegelik kulu]]","v":0}]
[null,"Söök","Lemmikloomad",{"v":150,"d":"150 €"},{"v":75,"d":"75 €"},{"$f":"IF(OR(Kuuväljaminekute_Tabel[[#This Row],[Prognoositavad kulud]]=\"\",Kuuväljaminekute_Tabel[[#This Row],[Tegelik kulu]]=\"\"),\"\",Kuuväljaminekute_Tabel[[#This Row],[Prognoositavad kulud]]-Kuuväljaminekute_Tabel[[#This Row],[Tegelik kulu]])","v":{"v":75,"d":"75 €"}},{"$f":"Kuuväljaminekute_Tabel[[#This Row],[Tegelik kulu]]","v":75}]
[null,"Hoolitsus","Lemmikloomad",{"v":20,"d":"20 €"},{"v":25,"d":"25 €"},{"$f":"IF(OR(Kuuväljaminekute_Tabel[[#This Row],[Prognoositavad kulud]]=\"\",Kuuväljaminekute_Tabel[[#This Row],[Tegelik kulu]]=\"\"),\"\",Kuuväljaminekute_Tabel[[#This Row],[Prognoositavad kulud]]-Kuuväljaminekute_Tabel[[#This Row],[Tegelik kulu]])","v":{"v":-5,"d":"-5 €"}},{"$f":"Kuuväljaminekute_Tabel[[#This Row],[Tegelik kulu]]","v":25}]
[null,"Meditsiinitarbed","Lemmikloomad",null,null,{"$f":"IF(OR(Kuuväljaminekute_Tabel[[#This Row],[Prognoositavad kulud]]=\"\",Kuuväljaminekute_Tabel[[#This Row],[Tegelik kulu]]=\"\"),\"\",Kuuväljaminekute_Tabel[[#This Row],[Prognoositavad kulud]]-Kuuväljaminekute_Tabel[[#This Row],[Tegelik kulu]])","v":""},{"$f":"Kuuväljaminekute_Tabel[[#This Row],[Tegelik kulu]]","v":0}]
[null,"Mänguasjad","Lemmikloomad",null,null,{"$f":"IF(OR(Kuuväljaminekute_Tabel[[#This Row],[Prognoositavad kulud]]=\"\",Kuuväljaminekute_Tabel[[#This Row],[Tegelik kulu]]=\"\"),\"\",Kuuväljaminekute_Tabel[[#This Row],[Prognoositavad kulud]]-Kuuväljaminekute_Tabel[[#This Row],[Tegelik kulu]])","v":""},{"$f":"Kuuväljaminekute_Tabel[[#This Row],[Tegelik kulu]]","v":0}]
[null,"Investeerimiskonto","Säästud",{"v":200,"d":"200 €"},{"v":200,"d":"200 €"},{"$f":"IF(OR(Kuuväljaminekute_Tabel[[#This Row],[Prognoositavad kulud]]=\"\",Kuuväljaminekute_Tabel[[#This Row],[Tegelik kulu]]=\"\"),\"\",Kuuväljaminekute_Tabel[[#This Row],[Prognoositavad kulud]]-Kuuväljaminekute_Tabel[[#This Row],[Tegelik kulu]])","v":{"v":0,"d":"0 €"}},{"$f":"Kuuväljaminekute_Tabel[[#This Row],[Tegelik kulu]]","v":200}]
[null,"Pensionikonto","Säästud",null,null,{"$f":"IF(OR(Kuuväljaminekute_Tabel[[#This Row],[Prognoositavad kulud]]=\"\",Kuuväljaminekute_Tabel[[#This Row],[Tegelik kulu]]=\"\"),\"\",Kuuväljaminekute_Tabel[[#This Row],[Prognoositavad kulud]]-Kuuväljaminekute_Tabel[[#This Row],[Tegelik kulu]])","v":""},{"$f":"Kuuväljaminekute_Tabel[[#This Row],[Tegelik kulu]]","v":0}]
[null,"Riiklikud maksud","Maksud",{"v":300,"d":"300 €"},{"v":300,"d":"300 €"},{"$f":"IF(OR(Kuuväljaminekute_Tabel[[#This Row],[Prognoositavad kulud]]=\"\",Kuuväljaminekute_Tabel[[#This Row],[Tegelik kulu]]=\"\"),\"\",Kuuväljaminekute_Tabel[[#This Row],[Prognoositavad kulud]]-Kuuväljaminekute_Tabel[[#This Row],[Tegelik kulu]])","v":{"v":0,"d":"0 €"}},{"$f":"Kuuväljaminekute_Tabel[[#This Row],[Tegelik kulu]]","v":300}]
[null,"Kohalikud maksud","Maksud",null,null,{"$f":"IF(OR(Kuuväljaminekute_Tabel[[#This Row],[Prognoositavad kulud]]=\"\",Kuuväljaminekute_Tabel[[#This Row],[Tegelik kulu]]=\"\"),\"\",Kuuväljaminekute_Tabel[[#This Row],[Prognoositavad kulud]]-Kuuväljaminekute_Tabel[[#This Row],[Tegelik kulu]])","v":""},{"$f":"Kuuväljaminekute_Tabel[[#This Row],[Tegelik kulu]]","v":0}]
[null,"Osariigi maksud","Maksud",null,null,{"$f":"IF(OR(Kuuväljaminekute_Tabel[[#This Row],[Prognoositavad kulud]]=\"\",Kuuväljaminekute_Tabel[[#This Row],[Tegelik kulu]]=\"\"),\"\",Kuuväljaminekute_Tabel[[#This Row],[Prognoositavad kulud]]-Kuuväljaminekute_Tabel[[#This Row],[Tegelik kulu]])","v":""},{"$f":"Kuuväljaminekute_Tabel[[#This Row],[Tegelik kulu]]","v":0}]
[null,"Bussi- ja taksosõiduraha","Transport",{"v":100,"d":"100 €"},{"v":150,"d":"150 €"},{"$f":"IF(OR(Kuuväljaminekute_Tabel[[#This Row],[Prognoositavad kulud]]=\"\",Kuuväljaminekute_Tabel[[#This Row],[Tegelik kulu]]=\"\"),\"\",Kuuväljaminekute_Tabel[[#This Row],[Prognoositavad kulud]]-Kuuväljaminekute_Tabel[[#This Row],[Tegelik kulu]])","v":{"v":-50,"d":"-50 €"}},{"$f":"Kuuväljaminekute_Tabel[[#This Row],[Tegelik kulu]]","v":150}]
[null,"Kütus","Transport",{"v":450,"d":"450 €"},{"v":400,"d":"400 €"},{"$f":"IF(OR(Kuuväljaminekute_Tabel[[#This Row],[Prognoositavad kulud]]=\"\",Kuuväljaminekute_Tabel[[#This Row],[Tegelik kulu]]=\"\"),\"\",Kuuväljaminekute_Tabel[[#This Row],[Prognoositavad kulud]]-Kuuväljaminekute_Tabel[[#This Row],[Tegelik kulu]])","v":{"v":50,"d":"50 €"}},{"$f":"Kuuväljaminekute_Tabel[[#This Row],[Tegelik kulu]]","v":400}]
[null,"Kindlustus","Transport",{"v":300,"d":"300 €"},{"v":300,"d":"300 €"},{"$f":"IF(OR(Kuuväljaminekute_Tabel[[#This Row],[Prognoositavad kulud]]=\"\",Kuuväljaminekute_Tabel[[#This Row],[Tegelik kulu]]=\"\"),\"\",Kuuväljaminekute_Tabel[[#This Row],[Prognoositavad kulud]]-Kuuväljaminekute_Tabel[[#This Row],[Tegelik kulu]])","v":{"v":0,"d":"0 €"}},{"$f":"Kuuväljaminekute_Tabel[[#This Row],[Tegelik kulu]]","v":300}]
[null,"Autokool ","Transport",{"v":25,"d":"25 €"},{"v":25,"d":"25 €"},{"$f":"IF(OR(Kuuväljaminekute_Tabel[[#This Row],[Prognoositavad kulud]]=\"\",Kuuväljaminekute_Tabel[[#This Row],[Tegelik kulu]]=\"\"),\"\",Kuuväljaminekute_Tabel[[#This Row],[Prognoositavad kulud]]-Kuuväljaminekute_Tabel[[#This Row],[Tegelik kulu]])","v":{"v":0,"d":"0 €"}},{"$f":"Kuuväljaminekute_Tabel[[#This Row],[Tegelik kulu]]","v":25}]
[null,"Hooldus","Transport",{"v":100,"d":"100 €"},{"v":50,"d":"50 €"},{"$f":"IF(OR(Kuuväljaminekute_Tabel[[#This Row],[Prognoositavad kulud]]=\"\",Kuuväljaminekute_Tabel[[#This Row],[Tegelik kulu]]=\"\"),\"\",Kuuväljaminekute_Tabel[[#This Row],[Prognoositavad kulud]]-Kuuväljaminekute_Tabel[[#This Row],[Tegelik kulu]])","v":{"v":50,"d":"50 €"}},{"$f":"Kuuväljaminekute_Tabel[[#This Row],[Tegelik kulu]]","v":50}]
[null,"Parkimine","Transport",null,null,{"$f":"IF(OR(Kuuväljaminekute_Tabel[[#This Row],[Prognoositavad kulud]]=\"\",Kuuväljaminekute_Tabel[[#This Row],[Tegelik kulu]]=\"\"),\"\",Kuuväljaminekute_Tabel[[#This Row],[Prognoositavad kulud]]-Kuuväljaminekute_Tabel[[#This Row],[Tegelik kulu]])","v":""},{"$f":"Kuuväljaminekute_Tabel[[#This Row],[Tegelik kulu]]","v":0}]
[null,"Sõiduki makse","Transport",{"v":450,"d":"450 €"},{"v":450,"d":"450 €"},{"$f":"IF(OR(Kuuväljaminekute_Tabel[[#This Row],[Prognoositavad kulud]]=\"\",Kuuväljaminekute_Tabel[[#This Row],[Tegelik kulu]]=\"\"),\"\",Kuuväljaminekute_Tabel[[#This Row],[Prognoositavad kulud]]-Kuuväljaminekute_Tabel[[#This Row],[Tegelik kulu]])","v":{"v":0,"d":"0 €"}},{"$f":"Kuuväljaminekute_Tabel[[#This Row],[Tegelik kulu]]","v":450}]

{"sheet":"Täiendav andmed","index":3,"n_rows":17,"n_cols":6,"rows_kept":17}
[{"$nulls":5}," "]
[null,"Eelarvediagrammi PivotTable-liigendtabel",null,null,"Kategooriate loend"]
[]
[null,"Categories","kulu",null,"Kategooria lisamiseks sisestage allpool"]
[null,"Lemmikloomad",{"v":100,"d":"100 €"},null,"Lapsed"]
[null,"Kingitused ja heategevus",{"v":125,"d":"125 €"},null,"Meelelahutus"]
[null,"Isiklik hooldus",{"v":140,"d":"140 €"},null,"Söök"]
[null,"Lapsed",{"v":140,"d":"140 €"},null,"Kingitused ja heategevus"]
[null,"Säästud",{"v":200,"d":"200 €"},null,"Eluase"]
[null,"Laenud",{"v":200,"d":"200 €"},null,"Kindlustus"]
[null,"Maksud",{"v":300,"d":"300 €"},null,"Laenud"]
[null,"Meelelahutus",{"v":358,"d":"358 €"},null,"Isiklik hooldus"]
[null,"Kindlustus",{"v":900,"d":"900 €"},null,"Lemmikloomad"]
[null,"Söök",{"v":1320,"d":"1,320 €"},null,"Säästud"]
[null,"Transport",{"v":1375,"d":"1,375 €"},null,"Maksud"]
[null,"Eluase",{"v":2702,"d":"2,702 €"},null,"Transport"]
[null,"Üldkokkuvõte",{"v":7860,"d":"7,860 €"}]